fUSD/lending_fUSD_20260514
["ID","MTS","AMOUNT","RATE_DAILY","PERIOD"]
[422246216,1778763046000,-174.0,0.00013849,2]
[422246214,1778763046000,-8778.86230413,0.00013831,2]
[422246188,1778763046000,-425.186581,0.00013699,2]
[422246217,1778763046000,-150.0,0.00013849,2]
[422246201,1778763046000,-726.414866,0.00013699,2]
[422246197,1778763046000,-726.414866,0.00013699,2]
[422246174,1778763046000,-180.979626,0.00013699,2]
[422246198,1778763046000,-726.414866,0.00013699,2]
[422246218,1778763046000,-150.0,0.00013849,2]
[422246163,1778763046000,-500.0,0.00013698,2]
[422246167,1778763046000,-500.0,0.00013698,2]
[422246165,1778763046000,-160.64410058,0.00013698,2]
[422246166,1778763046000,-500.0,0.00013698,2]
[422246164,1778763046000,-500.0,0.00013698,2]
[422246169,1778763046000,-500.0,0.00013698,2]
[422246168,1778763046000,-500.0,0.00013698,2]
[422246171,1778763046000,-1000.0,0.00013699,2]
[422246170,1778763046000,-506.12951293,0.00013698,2]
[422246172,1778763046000,-151.0,0.00013699,2]
[422246187,1778763046000,-425.186581,0.00013699,2]
[422246173,1778763046000,-151.0,0.00013699,2]
[422246175,1778763046000,-14253.66,0.00013699,2]
[422246178,1778763046000,-151.0,0.00013699,2]
[422246177,1778763046000,-151.0,0.00013699,2]
[422246179,1778763046000,-151.0,0.00013699,2]
[422246180,1778763046000,-151.0,0.00013699,2]
[422246181,1778763046000,-151.0,0.00013699,2]
[422246182,1778763046000,-151.0,0.00013699,2]
[422246183,1778763046000,-425.186581,0.00013699,2]
[422246184,1778763046000,-425.186581,0.00013699,2]
[422246185,1778763046000,-425.186581,0.00013699,2]
[422246186,1778763046000,-425.186581,0.00013699,2]
[422246176,1778763046000,-166.66,0.00013699,2]
[422246219,1778763046000,-150.0,0.00013849,2]
[422246220,1778763046000,-150.0,0.00013849,2]
[422246273,1778763046000,-500.0,0.0001439,2]
[422246265,1778763046000,-500.0,0.0001439,2]
[422246259,1778763046000,-500.0,0.0001439,2]
[422246257,1778763046000,-500.0,0.0001439,2]
[422246262,1778763046000,-500.0,0.0001439,2]
[422246261,1778763046000,-500.0,0.0001439,2]
[422246267,1778763046000,-500.0,0.0001439,2]
[422246263,1778763046000,-500.0,0.0001439,2]
[422246268,1778763046000,-500.0,0.0001439,2]
[422246270,1778763046000,-500.0,0.0001439,2]
[422246269,1778763046000,-500.0,0.0001439,2]
[422246279,1778763046000,-150.0,0.00014418,2]
[422246266,1778763046000,-500.0,0.0001439,2]
[422246274,1778763046000,-264.89014969,0.0001439,2]
[422246278,1778763046000,-441.91799074,0.000144,2]
[422246272,1778763046000,-500.0,0.0001439,2]
[422246276,1778763046000,-2575.91158558,0.000144,2]
[422246275,1778763046000,-1725.01407358,0.000144,2]
[422246277,1778763046000,-1330.79100157,0.000144,2]
[422246280,1778763046000,-201.6896769,0.000145,2]
[422246282,1778763046000,-150.0,0.00014552,2]
[422246281,1778763046000,-186.72,0.00014545,2]
[422246283,1778763046000,-178.0,0.00014607,2]
[422246284,1778763046000,-789.58,0.00014658,2]
[422246221,1778763046000,-150.0,0.00013849,2]
[422246271,1778763046000,-500.0,0.0001439,2]
[422246258,1778763046000,-500.0,0.0001439,2]
[422246260,1778763046000,-500.0,0.0001439,2]
[422246255,1778763046000,-500.0,0.0001439,2]
[422246222,1778763046000,-150.0,0.00013849,2]
[422246232,1778763046000,-1584.0,0.0001404,2]
[422246224,1778763046000,-308.0,0.000139,2]
[422246233,1778763046000,-2311.0,0.0001404,2]
[422246226,1778763046000,-314.0,0.000139,2]
[422246230,1778763046000,-250.0,0.00014,2]
[422246223,1778763046000,-150.0,0.00013879,2]
[422246264,1778763046000,-500.0,0.0001439,2]
[422246227,1778763046000,-200.0,0.000139,2]
[422246229,1778763046000,-166.66,0.00013973,2]
[422246228,1778763046000,-150.0,0.00013921,2]
[422246231,1778763046000,-150.0,0.00014013,2]
[422246234,1778763046000,-974.3328105,0.00014075,2]
[422246225,1778763046000,-1000.0,0.000139,2]
[422246236,1778763046000,-166.66,0.0001411,2]
[422246256,1778763046000,-500.0,0.0001439,2]
[422246254,1778763046000,-500.0,0.0001439,2]
[422246252,1778763046000,-500.0,0.0001439,2]
[422246248,1778763046000,-5159.2503196,0.0001439,2]
[422246246,1778763046000,-789.58,0.00014384,2]
[422246244,1778763046000,-2000.0,0.00014375,2]
[422246242,1778763046000,-150.0,0.00014283,2]
[422246238,1778763046000,-150.0,0.00014148,2]
[422246235,1778763046000,-1426.26891256,0.00014102,2]
[422246245,1778763046000,-166.66,0.00014384,2]
[422246240,1778763046000,-166.66,0.00014247,2]
[422246326,1778763047000,-151.0,0.00015,2]
[422246320,1778763047000,-151.0,0.00015,2]
[422246323,1778763047000,-151.0,0.00015,2]
[422246327,1778763047000,-151.0,0.00015,2]
[422246321,1778763047000,-151.0,0.00015,2]
[422246325,1778763047000,-221.1548625,0.00015,30]
[422246329,1778763047000,-151.0,0.00015,2]
[422246324,1778763047000,-157.432275,0.00015,30]
[422246319,1778763047000,-933.0,0.00015,2]
[422246317,1778763047000,-3469.0,0.00015,2]
[422246328,1778763047000,-151.0,0.00015,2]
[422246330,1778763047000,-151.0,0.00015,2]
[422246322,1778763047000,-151.0,0.00015,2]
[422246332,1778763047000,-584.087981,0.00015,2]
[422246344,1778763047000,-425.186581,0.00015,2]
[422246336,1778763047000,-584.087981,0.00015,2]
[422246333,1778763047000,-584.087981,0.00015,2]
[422246334,1778763047000,-584.087981,0.00015,2]
[422246337,1778763047000,-584.087981,0.00015,2]
[422246338,1778763047000,-584.087981,0.00015,2]
[422246341,1778763047000,-425.186581,0.00015,2]
[422246339,1778763047000,-584.087981,0.00015,2]
[422246340,1778763047000,-425.186581,0.00015,2]
[422246331,1778763047000,-256.025825,0.00015,2]
[422246342,1778763047000,-425.186581,0.00015,2]
[422246343,1778763047000,-425.186581,0.00015,2]
[422246353,1778763047000,-839.370064,0.00015,2]
[422246318,1778763047000,-1009.0,0.00015,2]
[422246335,1778763047000,-584.087981,0.00015,2]
[422246316,1778763047000,-161.8,0.00015,60]
[422246289,1778763047000,-1252.0,0.00014749,2]
[422246315,1778763047000,-161.8,0.00015,60]
[422246291,1778763047000,-1815.20941236,0.00014771,2]
[422246290,1778763047000,-2642.41508426,0.00014754,2]
[422246288,1778763047000,-15000.0,0.00014715,2]
[422246286,1778763047000,-150.0,0.00014688,2]
[422246287,1778763047000,-15000.0,0.00014695,2]
[422246285,1778763047000,-150.0,0.00014687,2]
[422246292,1778763047000,-4609.0,0.00014801,2]
[422246293,1778763047000,-231.94208573,0.00014822,2]
[422246301,1778763047000,-218.59374268,0.00014997,2]
[422246302,1778763047000,-172757.91879702,0.00015,2]
[422246294,1778763047000,-6111.0,0.00014844,2]
[422246303,1778763047000,-2075.94096564,0.00015,2]
[422246296,1778763047000,-188.23647324,0.00014925,2]
[422246314,1778763047000,-161.8,0.00015,30]
[422246295,1778763047000,-171.67,0.00014857,2]
[422246298,1778763047000,-10000.0,0.00014953,2]
[422246300,1778763047000,-151.0,0.00014997,2]
[422246299,1778763047000,-7852.0,0.00014963,2]
[422246304,1778763047000,-2531.85443811,0.00015,14]
[422246306,1778763047000,-8081.766424,0.00015,2]
[422246305,1778763047000,-166483.59189238,0.00015,2]
[422246307,1778763047000,-852385.8396716,0.00015,2]
[422246308,1778763047000,-1190892.03791428,0.00015,2]
[422246309,1778763047000,-161.84,0.00015,2]
[422246311,1778763047000,-161.8,0.00015,2]
[422246310,1778763047000,-161.8,0.00015,2]
[422246312,1778763047000,-161.8,0.00015,30]
[422246313,1778763047000,-161.8,0.00015,30]
[422246297,1778763047000,-327.81,0.00014932,2]
[422246345,1778763047000,-425.186581,0.00015,2]
[422246394,1778763047000,-151.0,0.00015514,2]
[422246350,1778763047000,-839.370064,0.00015,2]
[422246390,1778763047000,-178.0,0.00015429,2]
[422246389,1778763047000,-8018.0,0.000152,2]
[422246385,1778763047000,-892.364592,0.00015068,2]
[422246383,1778763047000,-892.364592,0.00015068,2]
[422246388,1778763047000,-8778.86230413,0.00015098,2]
[422246386,1778763047000,-892.364592,0.00015068,2]
[422246387,1778763047000,-892.364592,0.00015068,2]
[422246382,1778763047000,-892.364592,0.00015068,2]
[422246381,1778763047000,-892.364592,0.00015068,2]
[422246392,1778763047000,-200.0,0.00015514,2]
[422246384,1778763047000,-892.364592,0.00015068,2]
[422246391,1778763047000,-500.0,0.00015514,2]
[422246393,1778763047000,-151.0,0.00015514,2]
[422246380,1778763047000,-892.364592,0.00015068,2]
[422246397,1778763047000,-151.0,0.00015514,2]
[422246395,1778763047000,-151.0,0.00015514,2]
[422246398,1778763047000,-151.0,0.00015514,2]
[422246399,1778763047000,-151.0,0.00015514,2]
[422246401,1778763047000,-151.0,0.00015514,2]
[422246400,1778763047000,-151.0,0.00015514,2]
[422246402,1778763047000,-151.0,0.00015514,2]
[422246405,1778763047000,-151.0,0.00015514,2]
[422246403,1778763047000,-151.0,0.00015514,2]
[422246404,1778763047000,-151.0,0.00015514,2]
[422246407,1778763047000,-151.0,0.00015514,2]
[422246408,1778763047000,-151.0,0.00015514,2]
[422246354,1778763047000,-839.370064,0.00015,2]
[422246406,1778763047000,-151.0,0.00015514,2]
[422246396,1778763047000,-817.53776541,0.00015514,2]
[422246376,1778763047000,-892.364592,0.00015068,2]
[422246409,1778763047000,-151.0,0.00015514,2]
[422246375,1778763047000,-892.364592,0.00015068,2]
[422246377,1778763047000,-892.364592,0.00015068,2]
[422246352,1778763047000,-839.370064,0.00015,2]
[422246346,1778763047000,-425.186581,0.00015,2]
[422246348,1778763047000,-839.370064,0.00015,2]
[422246349,1778763047000,-839.370064,0.00015,2]
[422246351,1778763047000,-839.370064,0.00015,2]
[422246355,1778763047000,-839.370064,0.00015,2]
[422246356,1778763047000,-151.0,0.00015,2]
[422246364,1778763047000,-726.414866,0.00015,2]
[422246365,1778763047000,-726.414866,0.00015,2]
[422246357,1778763047000,-151.0,0.00015,2]
[422246368,1778763047000,-151.0,0.00015,2]
[422246366,1778763047000,-726.414866,0.00015,2]
[422246367,1778763047000,-726.414866,0.00015,2]
[422246347,1778763047000,-425.186581,0.00015,2]
[422246363,1778763047000,-726.414866,0.00015,2]
[422246373,1778763047000,-892.364592,0.00015068,2]
[422246374,1778763047000,-892.364592,0.00015068,2]
[422246371,1778763047000,-480.43,0.00015068,2]
[422246379,1778763047000,-892.364592,0.00015068,2]
[422246372,1778763047000,-892.364592,0.00015068,2]
[422246358,1778763047000,-151.0,0.00015,2]
[422246378,1778763047000,-892.364592,0.00015068,2]
[422246370,1778763047000,-700.0,0.00015043,2]
[422246361,1778763047000,-726.414866,0.00015,2]
[422246360,1778763047000,-726.414866,0.00015,2]
[422246362,1778763047000,-726.414866,0.00015,2]
[422246359,1778763047000,-161.502865,0.00015,2]
[422246369,1778763047000,-151.0,0.00015,2]
[422246447,1778763048000,-200.0,0.00016062,2]
[422246458,1778763048000,-2000.0,0.000162,2]
[422246453,1778763048000,-2000.0,0.000162,2]
[422246448,1778763048000,-2005.9555727,0.00016062,2]
[422246436,1778763048000,-284.22,0.000156,2]
[422246446,1778763048000,-300.0,0.00016,2]
[422246439,1778763048000,-151.90945559,0.000159,2]
[422246438,1778763048000,-150.0,0.000159,2]
[422246441,1778763048000,-150.0,0.000159,2]
[422246442,1778763048000,-150.0,0.000159,2]
[422246449,1778763048000,-150.0,0.00016112,2]
[422246450,1778763048000,-8183.64,0.00016116,2]
[422246460,1778763048000,-150.0,0.000162,2]
[422246451,1778763048000,-2000.0,0.000162,2]
[422246456,1778763048000,-2000.0,0.000162,2]
[422246457,1778763048000,-2000.0,0.000162,2]
[422246452,1778763048000,-2000.0,0.000162,2]
[422246454,1778763048000,-2000.0,0.000162,2]
[422246459,1778763048000,-150.0,0.000162,2]
[422246461,1778763048000,-150.0,0.000162,2]
[422246462,1778763048000,-173.0,0.000162,2]
[422246465,1778763048000,-150.0,0.00016274,2]
[422246463,1778763048000,-2129.0,0.00016205,2]
[422246464,1778763048000,-162.0,0.00016251,2]
[422246440,1778763048000,-150.0,0.000159,2]
[422246466,1778763048000,-234.0,0.00016274,2]
[422246455,1778763048000,-2000.0,0.000162,2]
[422246437,1778763048000,-4609.0,0.00015736,2]
[422246420,1778763048000,-151.0,0.00015514,2]
[422246434,1778763048000,-1223.0,0.00015519,2]
[422246468,1778763048000,-8778.86230413,0.00016365,2]
[422246416,1778763048000,-151.0,0.00015514,2]
[422246417,1778763048000,-151.0,0.00015514,2]
[422246418,1778763048000,-151.0,0.00015514,2]
[422246410,1778763048000,-151.0,0.00015514,2]
[422246414,1778763048000,-500.0,0.00015514,2]
[422246413,1778763048000,-151.0,0.00015514,2]
[422246412,1778763048000,-151.0,0.00015514,2]
[422246415,1778763048000,-151.0,0.00015514,2]
[422246411,1778763048000,-151.0,0.00015514,2]
[422246419,1778763048000,-151.0,0.00015514,2]
[422246421,1778763048000,-151.0,0.00015514,2]
[422246430,1778763048000,-3542.0,0.00015519,2]
[422246423,1778763048000,-151.0,0.00015514,2]
[422246425,1778763048000,-151.0,0.00015514,2]
[422246422,1778763048000,-151.0,0.00015514,2]
[422246431,1778763048000,-625.0,0.00015519,2]
[422246424,1778763048000,-151.0,0.00015514,2]
[422246426,1778763048000,-1934.38338737,0.00015514,2]
[422246428,1778763048000,-151.0,0.00015514,2]
[422246429,1778763048000,-926.0,0.00015519,2]
[422246427,1778763048000,-151.0,0.00015514,2]
[422246433,1778763048000,-1270.0,0.00015519,2]
[422246444,1778763048000,-150.0,0.000159,2]
[422246445,1778763048000,-180.24546421,0.0001592,2]
[422246443,1778763048000,-150.0,0.000159,2]
[422246432,1778763048000,-150.0,0.00015519,2]
[422246435,1778763048000,-5555.0,0.00015555,2]
[422246469,1778763048000,-2639.1,0.000164,2]
[422246473,1778763048000,-750.0,0.00016416,2]
[422246477,1778763048000,-693.0,0.00016416,2]
[422246509,1778763048000,-629.126431,0.00016438,2]
[422246508,1778763048000,-629.126431,0.00016438,2]
[422246510,1778763048000,-629.126431,0.00016438,2]
[422246505,1778763048000,-629.126431,0.00016438,2]
[422246511,1778763048000,-629.126431,0.00016438,2]
[422246502,1778763048000,-629.126431,0.00016438,2]
[422246503,1778763048000,-629.126431,0.00016438,2]
[422246506,1778763048000,-629.126431,0.00016438,2]
[422246504,1778763048000,-629.126431,0.00016438,2]
[422246514,1778763048000,-629.126431,0.00016438,2]
[422246513,1778763048000,-629.126431,0.00016438,2]
[422246512,1778763048000,-629.126431,0.00016438,2]
[422246515,1778763048000,-151.0,0.00016438,2]
[422246517,1778763048000,-151.0,0.00016438,2]
[422246516,1778763048000,-151.0,0.00016438,2]
[422246524,1778763048000,-151.0,0.00016438,2]
[422246519,1778763048000,-151.0,0.00016438,2]
[422246520,1778763048000,-151.0,0.00016438,2]
[422246518,1778763048000,-151.0,0.00016438,2]
[422246525,1778763048000,-151.0,0.00016438,2]
[422246523,1778763048000,-151.0,0.00016438,2]
[422246526,1778763048000,-151.0,0.00016438,2]
[422246521,1778763048000,-151.0,0.00016438,2]
[422246522,1778763048000,-151.0,0.00016438,2]
[422246528,1778763048000,-151.0,0.00016438,2]
[422246529,1778763048000,-151.0,0.00016438,2]
[422246470,1778763048000,-2000.0,0.00016416,2]
[422246507,1778763048000,-629.126431,0.00016438,2]
[422246494,1778763048000,-300.0,0.00016438,3]
[422246527,1778763048000,-151.0,0.00016438,2]
[422246496,1778763048000,-300.0,0.00016438,3]
[422246467,1778763048000,-6453.0,0.00016281,2]
[422246475,1778763048000,-750.0,0.00016416,2]
[422246472,1778763048000,-2000.0,0.00016416,2]
[422246471,1778763048000,-2000.0,0.00016416,2]
[422246476,1778763048000,-750.0,0.00016416,2]
[422246474,1778763048000,-750.0,0.00016416,2]
[422246480,1778763048000,-320.56,0.00016438,2]
[422246498,1778763048000,-480.43,0.00016438,2]
[422246481,1778763048000,-151.0,0.00016438,2]
[422246482,1778763048000,-151.0,0.00016438,2]
[422246483,1778763048000,-151.0,0.00016438,2]
[422246488,1778763048000,-151.0,0.00016438,2]
[422246486,1778763048000,-151.0,0.00016438,2]
[422246478,1778763048000,-2560.3,0.00016438,2]
[422246487,1778763048000,-151.0,0.00016438,2]
[422246484,1778763048000,-151.0,0.00016438,2]
[422246501,1778763048000,-629.126431,0.00016438,2]
[422246495,1778763048000,-300.0,0.00016438,3]
[422246500,1778763048000,-629.126431,0.00016438,2]
[422246492,1778763048000,-155.907713,0.00016438,2]
[422246497,1778763048000,-300.0,0.00016438,3]
[422246491,1778763048000,-151.0,0.00016438,2]
[422246490,1778763048000,-151.0,0.00016438,2]
[422246489,1778763048000,-151.0,0.00016438,2]
[422246479,1778763048000,-344.67587203,0.00016438,2]
[422246485,1778763048000,-151.0,0.00016438,2]
[422246499,1778763048000,-629.126431,0.00016438,2]
[422246493,1778763048000,-300.0,0.00016438,3]
[422246575,1778763049000,-1947.0,0.00017812,2]
[422246570,1778763049000,-7231.0,0.00017599,2]
[422246569,1778763049000,-284.22,0.000173,2]
[422246567,1778763049000,-2222.0,0.00017212,2]
[422246564,1778763049000,-3865.19966657,0.00016923,3]
[422246561,1778763049000,-150.0,0.00016849,2]
[422246566,1778763049000,-2157.14243826,0.00017158,2]
[422246565,1778763049000,-200.0,0.00017158,2]
[422246562,1778763049000,-150.0,0.00016849,2]
[422246560,1778763049000,-150.0,0.00016849,2]
[422246576,1778763049000,-3658.0,0.00017899,2]
[422246572,1778763049000,-200.0,0.00017706,2]
[422246582,1778763049000,-6325.0,0.00018021,2]
[422246574,1778763049000,-980.76,0.000178,2]
[422246573,1778763049000,-2236.95670848,0.00017706,2]
[422246571,1778763049000,-8778.86230413,0.00017633,2]
[422246577,1778763049000,-150.0,0.000179,2]
[422246578,1778763049000,-9035.0,0.00017909,2]
[422246579,1778763049000,-1017.0,0.00018,2]
[422246586,1778763049000,-4279.0,0.0001805,2]
[422246580,1778763049000,-272.7299738,0.00018,2]
[422246587,1778763049000,-202.0,0.0001805,2]
[422246581,1778763049000,-350.0,0.00018,2]
[422246584,1778763049000,-156.0,0.0001805,2]
[422246558,1778763049000,-150.0,0.00016849,2]
[422246583,1778763049000,-974.3328105,0.0001804,2]
[422246568,1778763049000,-1779.0,0.00017296,2]
[422246563,1778763049000,-150.0,0.00016922,2]
[422246545,1778763049000,-5846.828321,0.00016438,2]
[422246555,1778763049000,-156.51,0.00016712,2]
[422246585,1778763049000,-3248.0,0.0001805,2]
[422246537,1778763049000,-5846.828321,0.00016438,2]
[422246539,1778763049000,-5846.828321,0.00016438,2]
[422246538,1778763049000,-5846.828321,0.00016438,2]
[422246531,1778763049000,-5846.828321,0.00016438,2]
[422246530,1778763049000,-5846.828321,0.00016438,2]
[422246533,1778763049000,-5846.828321,0.00016438,2]
[422246535,1778763049000,-5846.828321,0.00016438,2]
[422246532,1778763049000,-5846.828321,0.00016438,2]
[422246534,1778763049000,-5846.828321,0.00016438,2]
[422246540,1778763049000,-5846.828321,0.00016438,2]
[422246542,1778763049000,-5846.828321,0.00016438,2]
[422246559,1778763049000,-150.0,0.00016849,2]
[422246543,1778763049000,-5846.828321,0.00016438,2]
[422246547,1778763049000,-2052.4,0.00016474,2]
[422246541,1778763049000,-5846.828321,0.00016438,2]
[422246550,1778763049000,-7431.94628016,0.000165,2]
[422246551,1778763049000,-206.4,0.000165,2]
[422246548,1778763049000,-4467.74,0.00016474,2]
[422246549,1778763049000,-4442.34461827,0.000165,2]
[422246546,1778763049000,-329.59,0.00016474,2]
[422246552,1778763049000,-5412.0,0.00016523,2]
[422246554,1778763049000,-2080.17592889,0.0001661,2]
[422246553,1778763049000,-200.0,0.0001661,2]
[422246556,1778763049000,-687.89,0.00016767,2]
[422246557,1778763049000,-150.0,0.00016849,2]
[422246544,1778763049000,-5846.828321,0.00016438,2]
[422246589,1778763049000,-523.0,0.0001805,2]
[422246536,1778763049000,-5846.828321,0.00016438,2]
[422246588,1778763049000,-153.0,0.0001805,2]
[422246632,1778763049000,-2367.0,0.0001905,2]
[422246630,1778763049000,-169.0,0.0001905,2]
[422246628,1778763049000,-153.0,0.0001905,2]
[422246633,1778763049000,-260.0,0.0001905,2]
[422246623,1778763049000,-272.0,0.00019008,2]
[422246631,1778763049000,-451.0,0.0001905,2]
[422246621,1778763049000,-300.0,0.00019007,2]
[422246624,1778763049000,-156.0,0.0001905,2]
[422246626,1778763049000,-4279.0,0.0001905,2]
[422246625,1778763049000,-3248.0,0.0001905,2]
[422246627,1778763049000,-202.0,0.0001905,2]
[422246629,1778763049000,-523.0,0.0001905,2]
[422246622,1778763049000,-432.0,0.00019007,2]
[422246634,1778763049000,-199.0,0.00019055,2]
[422246636,1778763049000,-1784.0,0.00019056,2]
[422246643,1778763049000,-2000.0,0.00019058,2]
[422246642,1778763049000,-636.0,0.00019056,2]
[422246637,1778763049000,-650.0,0.00019056,2]
[422246639,1778763049000,-650.0,0.00019056,2]
[422246645,1778763049000,-1714.0,0.00019058,2]
[422246644,1778763049000,-2000.0,0.00019058,2]
[422246646,1778763049000,-1050.0,0.00019058,2]
[422246638,1778763049000,-650.0,0.00019056,2]
[422246640,1778763049000,-650.0,0.00019056,2]
[422246648,1778763049000,-1050.0,0.00019058,2]
[422246647,1778763049000,-1050.0,0.00019058,2]
[422246635,1778763049000,-153.0,0.00019056,2]
[422246620,1778763049000,-300.0,0.00019007,2]
[422246641,1778763049000,-650.0,0.00019056,2]
[422246618,1778763049000,-300.0,0.00019007,2]
[422246619,1778763049000,-300.0,0.00019007,2]
[422246599,1778763049000,-6512.0,0.00018457,2]
[422246592,1778763049000,-2367.0,0.0001805,2]
[422246596,1778763049000,-2319.72410669,0.00018254,2]
[422246593,1778763049000,-260.0,0.0001805,2]
[422246597,1778763049000,-272.7299738,0.000184,2]
[422246595,1778763049000,-500.0,0.00018253,2]
[422246594,1778763049000,-272.7299738,0.000182,2]
[422246591,1778763049000,-451.0,0.0001805,2]
[422246598,1778763049000,-2560.3,0.0001841,2]
[422246601,1778763049000,-926.0,0.00018519,2]
[422246602,1778763049000,-3542.0,0.00018519,2]
[422246611,1778763049000,-20000.0,0.00019,2]
[422246600,1778763049000,-272.7299738,0.000185,2]
[422246590,1778763049000,-169.0,0.0001805,2]
[422246604,1778763049000,-1270.0,0.00018519,2]
[422246603,1778763049000,-625.0,0.00018519,2]
[422246614,1778763049000,-88552.60881034,0.00019,2]
[422246615,1778763049000,-300.0,0.00019007,2]
[422246613,1778763049000,-2812.1830191,0.00019,2]
[422246612,1778763049000,-340.5660685,0.00019,2]
[422246617,1778763049000,-300.0,0.00019007,2]
[422246609,1778763049000,-284.22,0.000189,2]
[422246610,1778763049000,-8778.86230413,0.000189,2]
[422246606,1778763049000,-272.7299738,0.000187,2]
[422246605,1778763049000,-1223.0,0.00018519,2]
[422246607,1778763049000,-2405.55389864,0.00018802,2]
[422246608,1778763049000,-194.058281,0.00018854,2]
[422246616,1778763049000,-300.0,0.00019007,2]
[422246693,1778763050000,-155.677675,0.00019178,2]
[422246681,1778763050000,-155.677675,0.00019178,2]
[422246680,1778763050000,-353.25828545,0.00019178,2]
[422246678,1778763050000,-501.0,0.00019061,2]
[422246682,1778763050000,-155.677675,0.00019178,2]
[422246689,1778763050000,-155.677675,0.00019178,2]
[422246690,1778763050000,-155.677675,0.00019178,2]
[422246683,1778763050000,-155.677675,0.00019178,2]
[422246684,1778763050000,-155.677675,0.00019178,2]
[422246679,1778763050000,-185.0,0.000191,4]
[422246685,1778763050000,-155.677675,0.00019178,2]
[422246691,1778763050000,-155.677675,0.00019178,2]
[422246695,1778763050000,-155.677675,0.00019178,2]
[422246694,1778763050000,-155.677675,0.00019178,2]
[422246687,1778763050000,-155.677675,0.00019178,2]
[422246676,1778763050000,-700.0,0.00019061,2]
[422246688,1778763050000,-155.677675,0.00019178,2]
[422246686,1778763050000,-155.677675,0.00019178,2]
[422246697,1778763050000,-780.093953,0.00019178,2]
[422246698,1778763050000,-780.093953,0.00019178,2]
[422246696,1778763050000,-155.677675,0.00019178,2]
[422246700,1778763050000,-780.093953,0.00019178,2]
[422246703,1778763050000,-780.093953,0.00019178,2]
[422246692,1778763050000,-155.677675,0.00019178,2]
[422246677,1778763050000,-700.0,0.00019061,2]
[422246665,1778763050000,-200.0,0.00019059,2]
[422246675,1778763050000,-700.0,0.00019061,2]
[422246704,1778763050000,-780.093953,0.00019178,2]
[422246659,1778763050000,-500.0,0.00019058,2]
[422246654,1778763050000,-500.0,0.00019058,2]
[422246650,1778763050000,-1050.0,0.00019058,2]
[422246649,1778763050000,-1050.0,0.00019058,2]
[422246652,1778763050000,-807.0,0.00019058,2]
[422246653,1778763050000,-500.0,0.00019058,2]
[422246658,1778763050000,-500.0,0.00019058,2]
[422246655,1778763050000,-500.0,0.00019058,2]
[422246651,1778763050000,-1050.0,0.00019058,2]
[422246657,1778763050000,-500.0,0.00019058,2]
[422246673,1778763050000,-700.0,0.00019061,2]
[422246656,1778763050000,-500.0,0.00019058,2]
[422246661,1778763050000,-500.0,0.00019058,2]
[422246666,1778763050000,-200.0,0.00019059,2]
[422246663,1778763050000,-200.0,0.00019059,2]
[422246670,1778763050000,-700.0,0.00019061,2]
[422246662,1778763050000,-339.0,0.00019058,2]
[422246668,1778763050000,-179.0,0.00019059,2]